[Event "AUT Bundesliga 2021-22"]
[Site "Graz"]
[Date "2022.04.21"]
[Round "9.24"]
[White "Janzelj, Tim"]
[Black "Kranz, Armin"]
[Result "1-0"]
[ECO "C42"]
[WhiteElo "2463"]
[BlackElo "2113"]
[Annotator "TA"]
[PlyCount "67"]
[EventDate "2021.01.17"]
[EventType "team-tourn"]
[EventCountry "AUT"]
[SourceTitle "playchess.com"]
[Source "ChessBase"]
[SourceQuality "1"]
[TimeControl "40/5400+30:1800+30"]

{[%evp 9,67,-33,-23,-42,-45,-28,-31,-59,-47,-57,-37,-43,-41,-42,-33,-32,-37,-35,-36,-78,147,146,146,148,178,60,51,68,57,26,41,37,66,19,20,29,85,60,198,193,193,188,169,147,216,211,186,179,453,416,421,411,902,857,2903,2551,29987,3393,29983,29983]} 1. e4 {[%emt 0:00:07]} e5 {[%emt 0:00:09]} 2. Nf3 {[%emt 0:00:04]} Nf6 {[%emt 0:00:08]} 3. Qe2 {[%emt 0:02:05]} Nc6 {[%emt 0:08:21]} 4. h3 {[%emt 0:00:59]} d6 {[%emt 0:06:15] [#]} 5. g4 $146 {[%emt 0:04:53]} ({Predecessor:} 5. c3 Be7 6. d3 O-O 7. d4 exd4 8. cxd4 d5 9. e5 Bb4+ 10. Bd2 Re8 11. Qd3 {0-1 (37) De Moura,E-Baltar,P (1828) Recife 2012}) 5... g6 {[%emt 0:01:26]} 6. Bg2 {[%emt 0:01:09] C42: Petroff Defence: 3 Nxe5 and unusual White 3rd moves.} Bg7 {[%emt 0:03:01]} 7. d3 {[%emt 0:00:30]} O-O {[%emt 0:07:42]} 8. Nbd2 {[%emt 0:02:02] Black is slightly better.} d5 {[%emt 0:07:48]} 9. Nf1 {[%emt 0:06:17]} Be6 {[%emt 0:08:02]} (9... h5 {with more complications.} 10. Bg5 hxg4 11. hxg4 Bxg4 12. Ne3 Nd4) 10. Ng3 {[%emt 0:01:47]} dxe4 {[%emt 0:04:29]} 11. dxe4 {[%emt 0:00:11]} Nd4 {[%emt 0:02:17]} 12. Nxd4 {[%emt 0:00:14]} Qxd4 {[%emt 0:01:57]} 13. c3 {[%emt 0:00:25]} Qa4 {[%emt 0:01:20]} 14. g5 {[%emt 0:06:47][%cal Bg4g5,Bg5f6][%mdl 32]} Bc4 $2 {[%emt 0:04:37] [#]} 15. b3 $1 $16 {[%emt 0:00:46][%mdl 512]} Bxb3 {[%emt 0:04:05] aiming for ...Nd7.} 16. gxf6 {[%emt 0:00:10]} Rfd8 {[%emt 0:04:11] [#]} 17. axb3 {[%emt 0:26:03]} Qxa1 $14 {[%emt 0:02:14]} 18. O-O {[%emt 0:00:12] Active counter play!} Bf8 {[%emt 0:01:51]} (18... Bxf6 $2 {[#]} 19. Bg5 $1 {[%mdl 512]} Qxf1+ 20. Bxf1 $18 (20. Nxf1 Bxg5 21. Qb5 Bf4 $18)) 19. Qf3 {[%emt 0:11:30][%cal Og3f5]} Qa6 {[%emt 0:05:49]} 20. c4 {[%emt 0:05:30][%cal Bc3c4,Bc4c5][%mdl 32]} Rd6 {[%emt 0:01:35]} 21. Bg5 {[%emt 0:08:04]} (21. Qc3 $14) 21... Rad8 $11 {[%emt 0:02:04]} 22. Qc3 {[%emt 0:05:26]} Re8 {[%emt 0:05:13]} (22... Rd3 $11 {keeps the balance.} 23. Qxe5 Bd6) 23. Ra1 {[%emt 0:00:31]} Qb6 {[%emt 0:02:24] This move loses the game for Black.} (23... Rd3 $1 $14 24. Qxd3 (24. Rxa6 Rxc3 25. Ra5 Rxb3 $15) 24... Qxa1+ 25. Nf1 Qd4) 24. c5 $18 {[%emt 0:06:23]} Qc6 {[%emt 0:00:36]} 25. Bf1 $36 {[%emt 0:00:03][%cal Of1b5][%mdl 2048] White is on the roll.} Rdd8 {[%emt 0:04:46]} 26. b4 {[%emt 0:03:22]} ({Worse is} 26. Rxa7 Bxc5 27. Qa1 Bxa7 28. Qxa7 Ra8 $17) 26... a6 {[%emt 0:01:54]} (26... h6 $16 {might work better.}) 27. Bc4 {[%emt 0:00:23] Qb3 is the strong threat.} h6 {[%emt 0:01:34]} 28. Qb3 {[%emt 0:00:37]} Qd7 {[%emt 0:00:48]} (28... hxg5 29. Bxf7+ Kh7) 29. Be3 {[%emt 0:00:21]} c6 {[%emt 0:00:39]} 30. Kh2 {[%emt 0:00:40][%cal Og3f5] Black must now prevent Nf5!} Qc7 {[%emt 0:00:42] [#]} (30... Re6 $142 31. Rg1 Qe8) 31. Nf5 $1 {[%emt 0:01:31][%mdl 512] Strongly threatening Rg1.} gxf5 {[%emt 0:05:46] [#]} (31... Rd4 32. Rg1) 32. Bxf7+ $1 {[%emt 0:00:17][%mdl 512]} Kh8 {[%emt 0:01:05]} (32... Kh7 33. Bxe8) 33. Bxe8 {[%emt 0:00:15]} (33. Rg1 $142 Rd5 34. Bxe8 fxe4 35. f7 Qe7 36. Rg8+ Kh7 37. Qb1 Rd3 38. Qg1) 33... Rxe8 {[%emt 0:01:10]} 34. Rg1 {[%emt 0:00:03] Weighted Error Value: White=0.14 (very precise) /Black=0.87} 1-0

[Event "AUT Bundesliga 2021-22"]
[Site "Graz"]
[Date "2022.04.21"]
[Round "9.25"]
[White "Shengelia, David"]
[Black "Ragger, Markus"]
[Result "1/2-1/2"]
[ECO "D80"]
[WhiteElo "2503"]
[BlackElo "2643"]
[Annotator "TA"]
[PlyCount "61"]
[EventDate "2021.01.17"]
[EventType "team-tourn"]
[EventCountry "AUT"]
[SourceTitle "playchess.com"]
[Source "ChessBase"]
[SourceQuality "1"]
[TimeControl "40/5400+30:1800+30"]

{[%evp 19,61,1,11,0,2,0,0,0,6,2,0,0,19,0,15,16,15,16,16,18,12,11,10,14,16,5,6,0,0,0,0,0,0,0,5,5,5,5,5,5,5,5,5,5]} 1. d4 {[%emt 0:00:12]} Nf6 {[%emt 0:00:06]} 2. c4 {[%emt 0:00:15]} g6 {[%emt 0:00:12]} 3. Nc3 {[%emt 0:01:06]} d5 {[%emt 0:00:12]} 4. Bg5 {[%emt 0:00:51]} Ne4 {[%emt 0:00:50]} 5. Bh4 {[%emt 0:01:33]} Nxc3 {[%emt 0:01:01]} 6. bxc3 {[%emt 0:00:06]} dxc4 {[%emt 0:00:06]} 7. e3 {[%emt 0:01:13]} Be6 {[%emt 0:04:12]} 8. Nf3 {[%emt 0:01:13]} Bg7 {[%emt 0:00:18]} 9. Be2 {[%emt 0:00:22] is the legacy move (9.Qb1).} O-O {[%emt 0:01:31]} 10. O-O {[%emt 0:00:22]} c5 {[%emt 0:00:31] The position is equal.} 11. Rb1 {[%emt 0:02:49] D91: Grünfeld: 4 Nf3 Bg7 5 Bg5.} (11. Ng5 {keeps more tension.} Bf5 12. Bxc4 Nc6 13. Rc1) 11... cxd4 {[%emt 0:03:24]} 12. Nxd4 {[%emt 0:02:55]} Bd5 {[%emt 0:01:25]} 13. Qc2 {[%emt 0:03:05]} Qc7 {[%emt 0:09:31]} 14. e4 {[%emt 0:05:55]} Bc6 {[%emt 0:00:40]} 15. Bxc4 {[%emt 0:01:51]} b6 {[%emt 0:02:42] [#]} 16. Rfd1 $146 {[%emt 0:10:38]} ({Predecessor:} 16. Bg3 Qb7 17. Rfe1 e6 18. Qe2 a6 19. h4 h5 20. Bf4 b5 21. Bd3 e5 22. Nxc6 exf4 23. Nxb8 {½-½ (23) Howell,D (2620)-Bok,B (2512) Leiden 2012}) 16... Bb7 {[%emt 0:03:11]} 17. Bd5 {[%emt 0:02:15] Hoping for Nb5.} Nc6 {[%emt 0:04:40]} 18. Nxc6 {[%emt 0:03:36]} Bxc6 {[%emt 0:03:36] [#]} 19. Bxe7 $1 {[%emt 0:03:03]} Qxe7 {[%emt 0:00:27]} 20. Bxc6 {[%emt 0:00:06]} Rac8 {[%emt 0:00:13]} 21. Bd5 {[%emt 0:00:40]} Rxc3 {[%emt 0:02:59]} 22. Qd2 {[%emt 0:01:24]} Rfc8 {[%emt 0:01:01]} 23. Rbc1 {[%emt 0:01:14]} Rxc1 {[%emt 0:02:25]} 24. Rxc1 {[%emt 0:00:05]} Rxc1+ {[%emt 0:00:05]} 25. Qxc1 {[%emt 0:00:04]} Bd4 {[%emt 0:00:10]} 26. g3 {[%emt 0:00:38]} Qc5 {[%emt 0:01:55]} 27. Qxc5 {[%emt 0:00:51]} Bxc5 {[%emt 0:00:13]} 28. Kg2 {[%emt 0:00:11]} Kf8 {[%emt 0:00:07]} 29. f4 {[%emt 0:00:23]} f6 {[%emt 0:00:07]} 30. Kf3 {[%emt 0:00:10]} Ke7 {[%emt 0:00:07]} 31. Bc4 {[%emt 0:00:10] An even fight not without its subleties.  Weighted Error Value: White=0.02 (flawless) /Black=0.03 (flawless)} 1/2-1/2

[Event "AUT Bundesliga 2021-22"]
[Site "Graz"]
[Date "2022.04.21"]
[Round "9.26"]
[White "Predojevic, Borki"]
[Black "Doric, Darko"]
[Result "1/2-1/2"]
[ECO "D10"]
[WhiteElo "2585"]
[BlackElo "2478"]
[Annotator "TA"]
[PlyCount "76"]
[EventDate "2021.01.17"]
[EventType "team-tourn"]
[EventCountry "AUT"]
[SourceTitle "playchess.com"]
[Source "ChessBase"]
[SourceQuality "1"]
[TimeControl "40/5400+30:1800+30"]

{[%evp 15,76,10,26,33,46,32,57,56,49,31,45,34,23,42,50,47,39,34,37,41,37,34,34,26,37,30,47,64,56,49,55,40,60,48,58,65,57,59,45,38,47,35,55,16,50,17,31,7,50,12,25,16,10,14,18,17,21,0,17,0,16,0,8]} 1. d4 {[%emt 0:00:11]} d5 {[%emt 0:00:11]} 2. c4 {[%emt 0:00:15]} c6 {[%emt 0:00:16]} 3. Nc3 {[%emt 0:01:34]} Nf6 {[%emt 0:00:40]} 4. cxd5 {[%emt 0:01:45]} cxd5 {[%emt 0:00:12]} 5. Bf4 {[%emt 0:00:05]} Nc6 {[%emt 0:00:13]} 6. e3 {[%emt 0:00:07]} a6 {[%emt 0:02:32]} 7. Be2 {[%emt 0:03:57]} Bf5 {[%emt 0:00:52]} 8. Nf3 {[%emt 0:01:07]} e6 {[%emt 0:00:19]} 9. Qb3 {[%emt 0:00:16] D13: Slav Defence: Exchange variation without ...Bf5.} Bd6 {[%emt 0:10:01]} 10. Bxd6 {[%emt 0:08:40]} (10. Qxb7 Na5 11. Qxa8 Qxa8 $15) 10... Qxd6 {[%emt 0:00:18]} 11. Qxb7 {[%emt 0:00:18] White is slightly better.} O-O {[%emt 0:00:22][%cal Bh8f8,Bf8b8,Bb8b2,Bb2c2][%mdl 32]} ({Less strong is} 11... Rb8 12. Qxa6 O-O 13. O-O $16) 12. Qb3 $1 {[%emt 0:00:37]} ({But not} 12. Bxa6 $2 Rab8 13. Qxb8 Rxb8 $19) 12... Rfb8 {[%emt 0:02:48]} 13. Qa3 {[%emt 0:01:27]} Qxa3 {[%emt 0:00:11]} 14. bxa3 {[%emt 0:00:05][%cal Bb2a3,Ba3a4][%mdl 32]} Na7 {[%emt 0:09:37]} 15. a4 {[%emt 0:10:43] Prevents Nb5.} Rb2 {[%emt 0:09:26]} 16. Bxa6 {[%emt 0:10:50]} Rc2 {[%emt 0:05:35]} 17. Nd1 {[%emt 0:02:22]} Nc8 {[%emt 0:00:41]} 18. Bb5 {[%emt 0:04:58]} Nb6 {[%emt 0:01:23]} 19. Ne5 {[%emt 0:02:59]} Nxa4 {[%emt 0:00:44]} 20. f3 {[%emt 0:02:00] [#]} Ra5 $146 {[%emt 0:03:13]} ({Predecessor:} 20... h5 21. O-O Ra5 22. Bxa4 Rxa4 23. a3 Ne8 24. Nd7 Nd6 25. Nc5 Rac4 26. a4 {½-½ (26) Laube,B (2402)-Varkentin,W (2423) ICCF email 2019}) 21. Bxa4 {[%emt 0:01:14]} Rxa4 {[%emt 0:00:08]} 22. g4 {[%emt 0:00:10]} Bg6 {[%emt 0:00:20]} 23. a3 {[%emt 0:00:29]} Ne8 {[%emt 0:06:29]} 24. O-O $1 {[%emt 0:01:01][%cal Bh1f1,Bf1f2,Bf2d2][%mdl 32]} f6 {[%emt 0:02:29]} 25. Nxg6 {[%emt 0:01:01]} hxg6 {[%emt 0:00:05]} 26. Rf2 {[%emt 0:00:11]} Rc8 {[%emt 0:01:05]} 27. Nb2 {[%emt 0:01:21]} Ra5 {[%emt 0:00:14]} 28. a4 {[%emt 0:00:34]} Nd6 {[%emt 0:01:24]} 29. Rd2 {[%emt 0:01:31]} Kf7 {[%emt 0:01:36]} 30. Kf2 {[%emt 0:02:50]} g5 {[%emt 0:01:39]} 31. h3 {[%emt 0:03:35]} Ke7 {[%emt 0:01:08]} 32. Ke2 {[%emt 0:05:48]} Rc3 {[%emt 0:06:14]} 33. Nd3 {[%emt 0:02:01]} Nc4 {[%emt 0:00:15] The position is equal.} 34. Rda2 {[%emt 0:00:07]} Kd6 {[%emt 0:00:37]} 35. Rb1 {[%emt 0:00:42]} Kc7 {[%emt 0:00:15]} 36. Rba1 {[%emt 0:02:41]} (36. f4 $5 {[%cal Rf4g5]}) 36... Kd6 {[%emt 0:00:27]} 37. Rb1 {[%emt 0:00:26]} Kc7 {[%emt 0:00:13]} 38. Rba1 {[%emt 0:00:10]} Kd6 {Weighted Error Value: White=0.07 (flawless) /Black=0.04 (flawless)} 1/2-1/2

[Event "AUT Bundesliga 2021-22"]
[Site "Graz"]
[Date "2022.04.21"]
[Round "9.27"]
[White "Lehner, Oliver"]
[Black "Handler, Lukas"]
[Result "1/2-1/2"]
[ECO "C02"]
[WhiteElo "2393"]
[BlackElo "2436"]
[Annotator "TA"]
[PlyCount "103"]
[EventDate "2021.01.17"]
[EventType "team-tourn"]
[EventCountry "AUT"]
[SourceTitle "playchess.com"]
[Source "ChessBase"]
[SourceQuality "1"]
[TimeControl "40/5400+30:1800+30"]

{[%evp 20,103,27,8,25,24,35,45,57,39,19,0,69,60,54,65,55,37,54,37,89,75,102,78,105,117,116,128,181,183,214,209,295,294,343,318,337,343,343,343,343,343,343,343,294,332,415,399,341,240,250,209,323,65,65,58,58,8,8,8,8,8,8,8,8,0,0,-8,0,0,0,0,0,0,0,0,0,0,0,0,0,0,0,0,0,0]} 1. e4 {[%emt 0:00:08][%cal Be2e4,Be4e5][%mdl 32]} e6 {[%emt 0:00:04]} 2. d4 {[%emt 0:00:17]} d5 {[%emt 0:00:06]} 3. e5 {[%emt 0:00:30]} c5 {[%emt 0:00:10]} 4. c3 {[%emt 0:00:10]} Nc6 {[%emt 0:00:09]} 5. Nf3 {[%emt 0:00:19]} Bd7 {[%emt 0:00:24]} 6. Be2 {[%emt 0:02:32]} cxd4 {[%emt 0:01:55]} 7. cxd4 {[%emt 0:00:16]} Nge7 {[%emt 0:00:36]} 8. Nc3 {[%emt 0:09:53]} Ng6 {[%emt 0:06:24]} 9. O-O {[%emt 0:07:24]} Be7 {[%emt 0:01:49]} 10. Re1 {[%emt 0:03:01]} O-O {[%emt 0:02:15]} 11. Bd3 {[%emt 0:05:41]} a6 {[%emt 0:09:18] [#] C02: French: Advance Variation.} 12. a3 $146 {[%emt 0:03:53]} ({Predecessor:} 12. Be3 b5 13. Rc1 Rc8 14. Bb1 Na5 15. g3 Nc4 16. b3 Na3 17. Bd3 b4 18. Ne2 Bb5 19. h4 Rxc1 20. Bxc1 Bxd3 21. Qxd3 {1-0 (45) Grandidier,R (2043)-Schott,R (2034) France 2009}) 12... b5 {[%emt 0:04:40][%cal Bb7b5,Bb5b4][%mdl 32]} 13. Ne2 {[%emt 0:07:27]} Qb6 {[%emt 0:07:52] White is slightly better.} 14. Be3 {[%emt 0:04:34]} b4 {[%emt 0:03:27]} 15. h4 {[%emt 0:00:35][%cal Bh2h4,Bh4h5,Bh5h6][%mdl 32]} Rfc8 {[%emt 0:08:27]} ({Black should play} 15... Nxh4 $11 16. Nxh4 Bxh4) 16. h5 $14 {[%emt 0:03:17]} Nf8 {[%emt 0:00:29]} 17. h6 {[%emt 0:17:50]} g6 {[%emt 0:01:18]} 18. Bg5 {[%emt 0:01:08]} bxa3 {[%emt 0:10:59]} 19. bxa3 {[%emt 0:01:23]} ({But not} 19. Bxe7 axb2 20. Ra2 Nxe7 $11) 19... Qd8 {[%emt 0:05:46]} (19... Bxg5 $14 20. Nxg5 Rab8) 20. Qd2 $16 {[%emt 0:00:51]} Be8 {[%emt 0:03:15]} 21. Bxe7 {[%emt 0:05:01]} Qxe7 {[%emt 0:00:27]} 22. Ng3 {[%emt 0:00:37][%cal Be2g3,Bg3f1,Bf1e3][%mdl 32]} Nd7 {[%emt 0:02:30]} 23. Nf1 {[%emt 0:00:06] &Bianco is much more active.} Nb6 {[%emt 0:04:41]} (23... a5 $16) 24. Ne3 {[%emt 0:01:39]} Nb8 {[%emt 0:04:56]} 25. Ng4 {[%emt 0:04:33]} Bb5 {[%emt 0:02:06]} (25... N8d7 {was necessary.} 26. Reb1 Ra7) 26. Reb1 $18 {[%emt 0:02:24]} N8d7 {[%emt 0:01:33]} 27. Bxb5 {[%emt 0:02:39]} axb5 {[%emt 0:00:04]} 28. Rxb5 {[%emt 0:00:11]} Rxa3 {[%emt 0:02:07]} 29. Rxa3 {[%emt 0:00:19]} Qxa3 {[%emt 0:00:07]} 30. Ra5 {[%emt 0:00:52]} Qf8 {[%emt 0:12:32]} 31. Ra7 {[%emt 0:05:48]} Ra8 {[%emt 0:00:24]} 32. Rxa8 {[%emt 0:01:58]} Nxa8 {[%emt 0:02:26]} 33. Qa5 {[%emt 0:00:19] Prevents Nc7.} Nab6 {[%emt 0:00:24]} 34. Qb5 {[%emt 0:01:13]} Qc8 {[%emt 0:01:15]} 35. Kh2 {[%emt 0:01:04]} Qc4 {[%emt 0:01:34]} (35... Qc7 {keeps fighting.} 36. g3 Qd8) 36. Qa5 $2 {[%emt 0:00:13] [#]} ({White has to play} 36. Qb2 $18) 36... Qa4 $1 $14 {[%emt 0:00:30]} 37. Qxa4 {[%emt 0:00:38]} (37. Qd2 {is more complex.} Qa3 38. Qg5 Qf8 39. Qc1) 37... Nxa4 {[%emt 0:00:04][%mdl 4096] Endgame KNN-KNN} 38. Kg1 {[%emt 0:00:05]} ({White should try} 38. Kg3 $14) 38... Nc3 $11 {[%emt 0:00:58] The position is equal.} 39. Kf1 {[%emt 0:01:57]} Ne4 {[%emt 0:00:41]} 40. Ke2 {[%emt 0:00:00]} Kf8 {[%emt 0:00:00]} 41. Nd2 {[%emt 0:13:23]} f5 {[%emt 0:25:48]} 42. Nxe4 {[%emt 0:03:37]} dxe4 {[%emt 0:00:51] KN-KN} 43. Ne3 {[%emt 0:00:04]} Kf7 {[%emt 0:01:37]} 44. g4 {[%emt 0:00:06]} Nb6 {[%emt 0:01:47]} 45. g5 {[%emt 0:06:31]} Ke7 {[%emt 0:01:05]} 46. f3 {[%emt 0:01:25]} exf3+ {[%emt 0:00:41]} 47. Kxf3 {[%emt 0:00:06]} Kd7 {[%emt 0:00:49]} 48. Ng2 {[%emt 0:00:06]} Nd5 {[%emt 0:00:53]} 49. Nh4 {[%emt 0:00:06][%cal Oh4g6] [#] Hoping for Nxg6!} Ne7 {[%emt 0:00:06]} 50. Ng2 {[%emt 0:00:05]} Nd5 {[%emt 0:01:37]} 51. Nh4 {[%emt 0:00:05][%cal Oh4g6] Strongly threatening Nxg6!} Ne7 {[%emt 0:00:31]} 52. Ng2 {[%emt 0:00:06] Blacks defense is rewarded with a draw.  Weighted Error Value: White=0.19 (very precise) /Black=0.15 (very precise)} 1/2-1/2

[Event "AUT Bundesliga 2021-22"]
[Site "Graz"]
[Date "2022.04.21"]
[Round "9.28"]
[White "Buhmann, Rainer"]
[Black "Tica, Sven"]
[Result "1/2-1/2"]
[ECO "D02"]
[WhiteElo "2569"]
[BlackElo "2423"]
[Annotator "TA"]
[PlyCount "109"]
[EventDate "2021.01.17"]
[EventType "team-tourn"]
[EventCountry "AUT"]
[SourceTitle "playchess.com"]
[Source "ChessBase"]
[SourceQuality "1"]
[TimeControl "40/5400+30:1800+30"]

{[%evp 12,109,9,0,2,-3,0,0,9,0,0,11,19,28,31,21,72,0,0,0,16,7,71,81,61,75,85,74,84,68,129,45,59,31,68,41,41,41,39,32,20,0,0,0,45,42,46,10,23,0,57,37,41,43,27,39,57,30,32,44,97,93,95,77,93,96,64,76,60,3,6,0,59,13,11,17,17,18,17,17,14,0,17,0,7,0,0,0,0,0,0,0,0,0,0,0,0,0,0,0]} 1. d4 {[%emt 0:00:11]} d5 {[%emt 0:00:16]} 2. Nf3 {[%emt 0:00:05]} e6 {[%emt 0:00:10]} 3. c4 {[%emt 0:00:06]} Nf6 {[%emt 0:00:10]} 4. e3 {[%emt 0:00:04]} b6 {[%emt 0:00:52]} 5. b3 {[%emt 0:00:16]} Bb7 {[%emt 0:00:07]} 6. Bd3 {[%emt 0:00:11]} Bd6 {[%emt 0:00:13]} 7. O-O {[%emt 0:00:27]} O-O {[%emt 0:00:06] E14: Queen's Indian: Classical Variation (4 e3).} 8. cxd5 {[%emt 0:00:14] is now debated instead of 8.Bb2.} exd5 {[%emt 0:00:07]} 9. Ba3 {[%emt 0:00:11]} c5 {[%emt 0:04:18]} 10. Nc3 {[%emt 0:00:11]} Nbd7 {[%emt 0:01:55]} 11. Rc1 {[%emt 0:00:55]} g6 {[%emt 0:00:30]} 12. Qe2 {[%emt 0:02:58]} Re8 {[%emt 0:00:37] [#]} 13. Rfd1 $146 {[%emt 0:02:19]} ({Predecessor:} 13. Ba6 Bxa6 14. Qxa6 cxd4 15. exd4 Bf4 16. Rce1 Qc7 17. Qd3 a6 18. g3 Bh6 19. Bb2 {½-½ (32) Mons,L (2500)-Rodshtein,M (2699) Germany 2018}) 13... a6 {[%emt 0:12:34] [#]} (13... Ne4 $11) 14. Bb2 {[%emt 0:19:17]} ({White should try} 14. Na4 $1 $16) 14... Qe7 $11 {[%emt 0:06:16]} 15. Qf1 {[%emt 0:10:06]} Ne4 {[%emt 0:09:28]} 16. dxc5 {[%emt 0:06:51]} bxc5 {[%emt 0:03:20]} (16... Nexc5 $11 17. Bc2 Nf6) 17. Bxe4 $16 {[%emt 0:06:13]} dxe4 {[%emt 0:00:07]} 18. Nd2 {[%emt 0:00:53][%cal Oc3e4]} Nf6 {[%emt 0:10:48]} 19. Qe2 {[%emt 0:20:49] Prevents Ng4.} h5 {[%emt 0:08:51]} 20. Na4 {[%emt 0:03:30] And now Nc4 would win.} Ng4 {[%emt 0:15:39]} ({Better is} 20... Rad8 $14) 21. Nf1 {[%emt 0:06:33] Pair of Knights!} (21. h3 $16 Ne5 22. Nc4) 21... Bc6 $14 {[%emt 0:03:51]} 22. h3 {[%emt 0:05:19]} Ne5 {[%emt 0:03:24]} (22... Bb5 $2 23. Qd2 Red8 24. hxg4 $18) 23. Bxe5 {[%emt 0:00:51]} (23. Nb6 $5 {[%cal Rb2e5]}) 23... Qxe5 {[%emt 0:00:16]} 24. Nb6 {[%emt 0:01:42] aiming for Qd2.} Bb5 $1 {[%emt 0:02:07]} 25. Nc4 {[%emt 0:00:27]} Bf8 {[%emt 0:02:46]} 26. a4 {[%emt 0:02:05]} Bxc4 {[%emt 0:00:06]} 27. Qxc4 {[%emt 0:00:14]} Re6 {[%emt 0:02:42]} 28. Rd5 {[%emt 0:01:52]} Qb2 {[%emt 0:00:18]} 29. Rc2 {[%emt 0:01:32]} Qb1 {[%emt 0:00:58]} 30. Rc1 {[%emt 0:00:58]} (30. Rcd2 $5 {[%cal Rd5d8]}) 30... Qb2 {[%emt 0:00:05]} 31. Rd2 {[%emt 0:00:50]} Qe5 {[%emt 0:01:01]} 32. Rcd1 {[%emt 0:01:05]} Rb8 {[%emt 0:01:55]} 33. Rd8 {[%emt 0:02:15]} Rb4 {[%emt 0:01:23]} 34. Qc2 {[%emt 0:00:23]} Kg7 {[%emt 0:02:14]} 35. R8d5 {[%emt 0:01:18]} Qb8 {[%emt 0:02:22]} (35... Qc7 $14) 36. Qc3+ $16 {[%emt 0:01:34]} ({Don't take} 36. Rd8 Qe5 $14) 36... Kg8 {[%emt 0:02:02]} 37. Rd8 {[%emt 0:01:06]} Qe5 {[%emt 0:00:05]} 38. Qxe5 {[%emt 0:01:29]} Rxe5 {[%emt 0:00:02]} 39. Ra8 {[%emt 0:01:54] [#] Hoping for Rdd8.} Kg7 {[%emt 0:00:07]} 40. Rdd8 {[%emt 0:00:00]} ({Much weaker is} 40. Rxa6 Rxb3 41. Rd7 Re7 42. Rxe7 Bxe7 $11) (40. Rd7 $1 $14) 40... Be7 $11 {[%emt 0:00:00]} 41. Rg8+ {[%emt 0:06:50]} Kh7 {[%emt 0:06:52]} (41... Kh6 $1 $11) 42. Rgb8 {[%emt 0:08:26]} (42. Rge8 $14 {is more appropriate.}) 42... c4 {[%emt 0:07:56] The position is equal.} 43. bxc4 {[%emt 0:07:09]} Rxa4 {[%emt 0:01:12]} 44. Rb7 {[%emt 0:00:48] Black must now prevent Re8.} Kg7 {[%emt 0:01:20]} 45. Raa7 {[%emt 0:01:26]} Kf8 {[%emt 0:03:13]} 46. Ra8+ {[%emt 0:02:42]} (46. g4 {with more complications.} Ra2 47. gxh5 gxh5 48. Ng3) 46... Kg7 {[%emt 0:00:06]} 47. Raa7 {[%emt 0:00:09]} (47. g4 {keeps more tension.} Ra2 48. Raa7 Kf8 49. gxh5 gxh5 50. Ng3) 47... Kf8 {[%emt 0:00:06]} 48. Rc7 {[%emt 0:01:25]} (48. g4 {is interesting.} Ra2 49. gxh5 gxh5 50. Ng3) 48... Ra2 {[%emt 0:05:11]} 49. Rc8+ {[%emt 0:00:29]} Kg7 {[%emt 0:00:06]} 50. Rcc7 {[%emt 0:00:18]} Kf8 {[%emt 0:00:25]} 51. g4 {[%emt 0:00:50]} h4 {[%emt 0:03:01]} 52. Rc8+ {[%emt 0:00:22]} Kg7 {[%emt 0:00:05]} 53. Rcc7 {[%emt 0:00:04]} Kf8 {[%emt 0:00:25]} 54. Rc8+ {[%emt 0:03:27]} Kg7 {[%emt 0:00:06]} 55. Rcc7 {[%emt 0:00:09] Weighted Error Value: White=0.11 (very precise) /Black=0.12 (very precise)} 1/2-1/2